Cogmind - Beta 10.2 @@@ ROGUE MODE // 2020.12.17 @ 23:12:47 Player: Michael Result: Self-destructed Performance ------------- Evolutions (1) 500 Regions Visited (2) 400 Robots Destroyed (37) 185 Value Destroyed (842) 842 Prototype IDs (2) 40 Alien Tech Used (0) 0 Bonus (289) 289 TOTAL SCORE: 2256 Bonus ------- Pacifist 200 High Alert Combat Kills 89 Cogmind --------- Core Integrity 2/400 Matter 222/300 Energy 100/100 System Corruption 0% Temperature Cool (0) Movement Core (100) Ox1 Location -9/Materials Parts ------- > --- POWER (1) -------- (None) > --- PROPULSION (2) --- (None) > --- UTILITY (2) ------ Signal Interpreter > --- WEAPON (4) ------- Improved Assault Rifle Improved Assault Rifle > --- INVENTORY (4) ---- Cooled Ion Engine Medium Storage Unit Mini Grenade Launcher Katana Peak State ------------ > --- POWER ------------ Cooled Ion Engine > --- PROPULSION ------- Wheel Wheel > --- UTILITY ---------- Small Storage Unit Signal Interpreter > --- WEAPON ----------- Assault Rifle Heavy Assault Rifle Mini Grenade Launcher Mini Grenade Launcher > --- INVENTORY -------- Cooled Ion Engine Light EM Pulse Cannon Light EM Pulse Cannon Assault Rifle Assault Rifle Heavy Assault Rifle [Rating: 15] Favorites ----------- Power Ion Engine Engine Ion Engine Propulsion Wheel Leg Aluminum Leg Wheel Wheel Utility Small Storage Unit Storage Small Storage Unit Processor Signal Interpreter Weapon Assault Rifle Ballistic Gun Assault Rifle Launcher Mini Grenade Launcher Build | -11 -10 -9 ------- Run | Scr Mat Mat Slots Evolved 2 | . . 2 Power . | . . . Propulsion . | . . . Utility . | . . . Weapon 2 | . . 2 Parts Attached 26 | 6 . 20 Power 2 | 1 . 1 Engine 2 | 1 . 1 Core . | . . . Reactor . | . . . Propulsion 5 | 2 . 3 Treads . | . . . Leg 3 | 2 . 1 Wheel 2 | . . 2 Hover . | . . . Flight . | . . . Utility 4 | 1 . 3 Device . | . . . Storage 2 | 1 . 1 Processor 2 | . . 2 Hackware . | . . . Protection . | . . . Artifact . | . . . Weapon 15 | 2 . 13 Energy Gun . | . . . Energy Cannon . | . . . Ballistic Gun 12 | 2 . 10 Ballistic Cannon . | . . . Launcher 3 | . . 3 Special Weapon . | . . . Impact Weapon . | . . . Slashing Weapon . | . . . Piercing Weapon . | . . . Special Melee Weapon . | . . . Unidentified Prototypes 2 | . . 2 Parts Lost 6 | . . 6 Power . | . . . Propulsion 2 | . . 2 Utility . | . . . Weapon 4 | . . 4 Highest Loss Streak 4 | . . 4 Average Slot Usage (%) 86 | . 85 86 Engine 10 | . 14 9 Leg 7 | . 28 4 Wheel 12 | . . 14 Storage 10 | . 14 10 Processor 8 | . . 10 Ballistic Gun 36 | . 28 37 Naked Turns . | . . . Heaviest Build 25 | 13 13 25 Greatest Support 20 | 20 20 20 Greatest Overweight (x) 5 | . . 5 Average Overweight (x) . | . . . Largest Inventory Capacity 8 | 6 6 8 Average Capacity 6 | 5 6 6 Most Carried 7 | 4 6 7 Average Carried 5 | 3 4 5 Final Capacity 6 | 6 6 4 Final Carried 6 | 4 6 4 Class Distribution -------------------- 67% | Gunner 32% | Mutant Dominant Class ---------------- Mutant | -10/Materials Gunner | -9/Materials Resources | -11 -10 -9 ----------- Run | Scr Mat Mat Matter Collected 1086 | 217 . 869 Remotely . | . . . Salvage Created 1271 | . . 1271 Parts 87 | . . 87 Haulers Intercepted 2 | . . 2 Recyclers Shooed 4 | . . 4 Parts Field Recycled . | . . . Retrieved Matter . | . . . Parts Self-Destructed . | . . . Prevented . | . . . Kills | -11 -10 -9 ------- Run | Scr Mat Mat Combat Hostiles Destroyed 25 | . . 25 Guns 20 | . . 20 AOE 5 | . . 5 Classes Destroyed 9 | . . 9 Worker 2 | . . 2 Builder 2 | . . 2 Hauler 2 | . . 2 Recycler 3 | . . 3 Operator 2 | . . 2 Watcher 1 | . . 1 Swarmer 9 | . . 9 Grunt 10 | . . 10 Sentry 6 | . . 6 Best Kill Streak 7 | . . 7 Combat Bots Only 6 | . . 6 Max Kills in Single Turn 3 | . . 3 Gunslinging . | . . . Exploded 3 | . . 3 Melee . | . . . Uniques/NPCs Destroyed . | . . . Combat | -11 -10 -9 -------- Run | Scr Mat Mat Damage Taken 1262 | . . 1262 Core 398 | . . 398 Absorbed by Shields . | . . . Core Remaining (%) 100 | 100 100 . Volleys Fired 69 | . . 69 Largest 4 | . . 4 Hottest 103 | . . 103 Shots Fired 233 | . . 233 Gun 228 | . . 228 Cannon . | . . . Launcher 5 | . . 5 Special . | . . . Kinetic 228 | . . 228 Thermal . | . . . Explosive 5 | . . 5 Electromagnetic . | . . . Robot Hit Streak 14 | . . 14 Robot Miss Streak 3 | . . 3 Penetration Max . | . . . Secondary Targets 3 | . . 3 Max Gunslinging Chain 1 | . . 1 Shots Hit Robots 142 | . . 142 Core Hits 54 | . . 54 Critical Hits . | . . . Critical Kills . | . . . Critical Parts Destroyed . | . . . Melee Attacks . | . . . Impact . | . . . Slashing . | . . . Piercing . | . . . Sneak Attacks . | . . . Combat Hostiles . | . . . Follow-up Attacks . | . . . Damage Inflicted 2033 | . . 2033 Guns 1638 | . . 1638 Cannons . | . . . Explosions 395 | . . 395 Melee . | . . . Ramming . | . . . Kinetic 1638 | . . 1638 Thermal . | . . . Explosive 359 | . . 359 Electromagnetic 36 | . . 36 Impact . | . . . Slashing . | . . . Piercing . | . . . Highest Corruption . | . . . Average Corruption . | . . . Corruption Purged . | . . . Overload Shots . | . . . Overflow Damage 3 | . . 3 Projectiles . | . . . Explosions 3 | . . 3 Melee . | . . . Knockbacks . | . . . Impact . | . . . Kinetic . | . . . Secondary . | . . . Self-Inflicted Damage 37 | . . 37 Shots 1 | . . 1 Rammed . | . . . Targets Rammed . | . . . Kicked . | . . . Crushed . | . . . Highest Temperature 53 | . . 53 Average Temperature 10 | . . 10 Received Heat Transfer 444 | . . 444 Siege Activations . | . . . Robots Corrupted . | . . . Combat Hostiles . | . . . Parts Fried . | . . . Impact Corruptions . | . . . Robots Melted . | . . . Combat Hostiles . | . . . Parts Melted . | . . . Heat Transferred . | . . . Parts Sabotaged . | . . . Parts Stolen . | . . . Parts Stripped . | . . . Power Chain Reactions 1 | . . 1 Missiles Intercepted . | . . . Alert | -11 -10 -9 ------- Run | Scr Mat Mat Peak Influence 639 | . 30 639 Initial 12 | . . 12 Average 169 | . 13 204 Maximum Alert Level 2 | . . 2 Low Security (%) 71 | 100 100 65 Level 1 6 | . . 7 Level 2 22 | . . 26 Level 3 . | . . . Level 4 . | . . . Level 5 . | . . . High Security . | . . . Max Security . | . . . Squads Dispatched 7 | . . 7 Investigation . | . . . Extermination . | . . . Reinforcement 6 | . . 6 Assault 1 | . . 1 Garrison . | . . . Intercept . | . . . Construction Impeded 2 | . . 2 Haulers Reinforced . | . . . Stealth | -11 -10 -9 --------- Run | Scr Mat Mat Distress Signals 4 | . . 4 Communications Jammed . | . . . Distress Signals . | . . . Times Spotted 50 | . 2 48 Peak Tracking Total 9 | . 1 9 Tactical Retreats 3 | . . 3 Traps | -11 -10 -9 ------- Run | Scr Mat Mat Traps Triggered . | . . . Indirectly . | . . . Trap Hack Attempts . | . . . Triggered . | . . . Disarmed . | . . . Reprogrammed . | . . . Reused . | . . . Traps Extracted . | . . . Installed . | . . . Triggered . | . . . Machines | -11 -10 -9 ---------- Run | Scr Mat Mat Machines Disabled 6 | . . 6 Max in Single Turn 1 | . . 1 Machines Sabotaged . | . . . Garrisons Compromised . | . . . Overloaded Fab Kills . | . . . Fab Network Shutdowns . | . . . Hacking | -11 -10 -9 --------- Run | Scr Mat Mat Machines Accessed 8 | . 3 5 Terminals 5 | . 2 3 Fabricators . | . . . Repair Stations . | . . . Recycling Units 2 | . 1 1 Scanalyzers 1 | . . 1 Garrison Access . | . . . Total Hacks 25 | . 9 16 Successful 11 | . 4 7 Failed 14 | . 5 9 Catastrophic . | . . . Database Lockouts . | . . . Manual 9 | . 4 5 Terminals 20 | . 8 12 Fabricators . | . . . Repair Stations . | . . . Recycling Units 3 | . 1 2 Scanalyzers 2 | . . 2 Garrison Access . | . . . Terminal Hacks 5 | . 2 3 Part Schematic 2 | . 1 1 Unreport Threat 1 | . . 1 Zone Layout 2 | . 1 1 Fabricator Hacks . | . . . Repair Station Hacks . | . . . Recycling Unit Hacks 2 | . 1 1 Retrieve Components 2 | . 1 1 Scanalyzer 2 | . . 2 Insert Component 1 | . . 1 Analyze 1 | . . 1 Garrison Access Hacks . | . . . Unauthorized Hacks 2 | . 1 1 Terminals 2 | . 1 1 Botnet 2 | . 1 1 Fabricators . | . . . Repair Stations . | . . . Recycling Units . | . . . Scanalyzers . | . . . Garrison Access . | . . . Data Cores Recovered 1 | . . 1 Used 1 | . . 1 Hacking Detections 7 | . 2 5 Full Trace Events . | . . . Feedback Events . | . . . Feedback Blocked . | . . . Robot Schematics Acquired . | . . . Robots Built . | . . . Matter . | . . . Time . | . . . Total Robot Build Rating . | . . . Part Schematics Acquired 3 | . 1 2 Parts Built . | . . . Matter . | . . . Time . | . . . Total Part Build Rating . | . . . Parts Repaired . | . . . Time . | . . . Parts Recycled . | . . . Recycled Matter . | . . . Retrieved Matter . | . . . Retrieved Components 12 | . 2 10 Parts Scanalyzed 1 | . . 1 Part Schematics Acquired 1 | . . 1 Parts Damaged . | . . . Bothacking | -11 -10 -9 ------------ Run | Scr Mat Mat Used RIF Installer . | . . . Robots Hacked . | . . . Non-combat . | . . . Combat . | . . . Robot Hacks Applied . | . . . Relay Couplers Released . | . . . Robots Rewired . | . . . Allies Hacked . | . . . Hacks Repelled . | . . . Allies | -11 -10 -9 -------- Run | Scr Mat Mat Total Allies . | . . . Largest Group . | . . . Highest-Rated Group . | . . . Highest-Rated Ally . | . . . Total Orders . | . . . Ally Attacks . | . . . Total Damage . | . . . Kills . | . . . Allies Corrupted . | . . . Allies Melted . | . . . Intel | -11 -10 -9 ------- Run | Scr Mat Mat Robot Analysis Total . | . . . Derelict Logs Recovered . | . . . Drone Launches . | . . . Drone Recoveries . | . . . Exploration | -11 -10 -9 ------------- Run | Scr Mat Mat Turns Passed 1129 | 60 140 929 Spaces Moved 786 | 44 112 630 Core 91 | 8 . 83 Treads . | . . . Legs 242 | 36 112 94 Wheels 453 | . . 453 Hover . | . . . Flight . | . . . Fastest Speed 50 | 50 120 50 Average Speed 95 | 107 120 90 Slowest Speed 300 | 120 120 300 Overloaded Moves . | . . . Propulsion Burnouts . | . . . Robots Hopped . | . . . Cave-ins Triggered . | . . . Exploration Rate (%) 30 | 3 37 52 Regions Visited 2 Branch Regions . Pre-discovered Areas . | . . . Known Exits Taken . | . . . Unknown Exits Taken 2 | 1 1 . Scrap Searched . | . . . Spaces Dug . | . . . Terrain Destroyed 18 | . . 18 Melee . | . . . Projectile . | . . . AOE 18 | . . 18 Terrain Rammed . | . . . Walls Destroyed . | . . . Machines Disabled . | . . . Actions | -11 -10 -9 --------- Run | Scr Mat Mat Total 1004 | 54 119 831 Wait 92 | 1 . 91 Move 784 | 43 111 630 Hop . | . . . Pick Up 13 | 4 5 4 Fast Attach 13 | 6 . 7 Attach 3 | . . 3 Detach 5 | . . 5 Swap 10 | . . 10 Drop 15 | . 3 12 Fire 69 | . . 69 Melee . | . . . Ram . | . . . Kick . | . . . Crush . | . . . Escape Stasis . | . . . Rewire . | . . . Trap . | . . . Miscellaneous . | . . . Route ------- -11/Scrapyard -10/Materials -9/Materials (discovered 5 exits: *Mat / *Min x2 / *Sto x2) History --------- Turn | Location | Event 5 | -11/Scrapyard | Discovered new exit (range 16) 61 | -11/Scrapyard | Entered Materials 114 | -10/Materials | Discovered new exit (range 13) 201 | -10/Materials | Entered another Materials area 201 | -9/Materials | Evolved 2 slots: Weapon x2 294 | -9/Materials | Discovered new exit (range 12) 358 | -9/Materials | Identified exit to Storage 401 | -9/Materials | Discovered new exit (range 11) 454 | -9/Materials | Identified exit to Materials 499 | -9/Materials | Build established: Gunner 690 | -9/Materials | Discovered exit to Storage (range 15) 771 | -9/Materials | Discovered new exit (range 12) 1001 | -9/Materials | First assault squad dispatched 1019 | -9/Materials | Lost 4 parts (2n2w) 1045 | -9/Materials | Discovered new exit (range 10) 1086 | -9/Materials | Identified exit to Mines 1096 | -9/Materials | Core integrity fell below 50% 1129 | -9/Materials | Core integrity fell below 20% 1130 | -9/Materials | Self-destructed Last Messages --------------- 01076_ K-01 Serf cleans the Integration Channel. 01080_ K-01 Serf collects debris. 01081_ W-16 Scout sends out distress signal. 01086_ K-01 Serf cleans the Terminal. 01086_ EXIT=IDENTIFIED: MINES 01094_ Connecting with Terminal... 01098_ A-02 Transporter destroyed. 01099_ Acquired Prototype Ballistic Gun. 01099_ Identified Imp. Assault Rifle. 01102_ Acquired Imp. Assault Rifle. 01109_ Y-45 Defender destroyed. 01109_ Switching to secondary target: G-34 Mercenary. 01109_ Electrolysis Chamber disabled. 01111_ K-01 Serf collects debris. 01112_ G-34 Mercenary destroyed. 01112_ Switching to secondary target: Y-45 Defender. 01114_ K-01 Serf collects debris. 01121_ G-34 Mercenary destroyed. 01121_ Switching to secondary target: Y-45 Defender. 01123_ K-01 Serf collects debris. Map ----- +----------------------------------------------------+ | ???????????????????????????? # # | | ???????????????????????????? # """ + | | ???????????????????????????? # """ # | | ???????????????????????????? # """ "T" # ! | | ????????????????????????????###### +]= | | ?????????????????????????????????##############*[= | | ??????????????????????????????????????#########][ | | ??????????????????????????????????????# ## | | ??????????????????????????????????????# """ ## | | ??????????????????????????############# """ ## | | ??????????????????????????# = * + """ ## | | ??????????????????????????# ########### ## | | ??????????????????????????# #?????????# """ ## " | | ??????????????????????????# #?????????# """ ## % | | ??????????????????????????# #?????????# """ # | | ??????????????????####????# #?????????# =# = " | | ???????????????????==]????# ########### """ + % " | | ???????????????????==]]???# ## """" # """ # " | | ???????????????????? #### ## ""S"" # """ # " | | ????????????????????? # #????????# ## " | | ?????????????????????? ! #????????######### | | ?????????????????????? !%* +????????????##### | | ??????????????????????? ! #????????????#** | | ???????????????????????? #????????????#** | | ????????????????????????#= #?????????????#/ | | ????????????????????????#@= #?????????????#// | | ????????????????????????#l[!#????##########// | | ????????????????????????#*[!#????#"""""""##// | | ???????????????????????##*=g##???#" !"| "###### | | ???????????????????????# %g[#####" "##### | | ???????????????????????# ] Y "" | | ???????????????????????# m k > T | | ???????????????????????# | | ???????????????????????# "" ## ##### | | ???????????????????????# """ ##########??####/# | | ???????????????????????# ! """ ##??????????# | | ???????????????????????# #####??????# | | ???????????????????????# #????# """ | | ???????????????????????# "T" ##### #????# """ | | ???????????????????????####### #??????????# """ | | ?????????????????????????????# #??????????# | | ?????????????????????????????# #??????########## | | ?????????????????????????????# #??????# | | ????????????????????????????? #??????# | | ?????????????????????????????##+##??????# !! | | ???????????????????????????????????????## !! | | ???????????????????????????????????????#" ! | | ???????????????????????????????????????#T = | | ???????????????????????????????????????#" | | ???????????????????????????????????????## | +----------------------------------------------------+ Best States ------------- Heat Dissipation 28 Energy Generation 14 Energy Capacity 280 Matter Stores 300 Matter Capacity 300 Sight Range 16 Terrain Scan Density 10 Evasion (%) 50 Armor Integrity Analysis 33 Item Schematics ----------------- Hcp. Storage Unit | -10/Materials | Hacked Arm. Wheel | -9/Materials | Hacked Hvy. Assault Rifle | -9/Materials | Scanalyzed Robot Schematics ------------------ None Fabricated ------------ Nothing Alien Tech Used ----------------- None Achievements -------------- None Challenges ------------ None Game ------ Seed ChargeProcessingProcessor Manual? 0 Play Time 00:18:30 Cumulative 333.6 hours Start 2020.12.17 @ 22:54:59 End 2020.12.17 @ 23:12:47 Sessions 1 Manual Loads 0 Difficulty Rogue Special Mode None Game No. 136 Rogue 100 Adventurer 36 Explorer 0 Win Type - Total 11 Types 11/0/0/0/0/0/0/0/0 Lore% 52 Gallery% 58 Achievement% 43 Wizard Run 0 Options --------- ASCII 0 Keyboard 1 Movement Vi Keybinds 0 Fullscreen 1 Font 18/Terminus Map View 76x50 Tactical HUD 1 Map Filters NONE Filters NONE Steam 0 RUN: 5e919854-c34e-47e5-8164-3c0ad8164392